[Event "Titled Tuesday Blitz March 28 Early 2023"]
[White "Durarbayli, Vasif"]
[Black "Roebers, Eline"]
[WhiteFideId "13402935"]
[BlackFideId "1058401"]
[WhiteElo "2543"]
[BlackElo "2515"]
[Result "1-0"]
[Round "03"]
[TimeControl "180+2"]
[Date "2023.03.28"]
[WhiteClock "0:01:13"]
[BlackClock "0:00:04"]

1. e4 {[%clk 0:03:00]}  c5 {[%clk 0:02:49]} 2. Nf3 {[%clk 0:03:00]}  e6 {[%clk 0:02:50]} 3. Be2 {[%clk 0:02:59]}  Nc6 {[%clk 0:02:49]} 4. O-O {[%clk 0:02:58]}  Nf6 {[%clk 0:02:47]} 5. Nc3 {[%clk 0:02:58]}  Be7 {[%clk 0:02:45]} 6. Re1 {[%clk 0:02:58]}  a6 {[%clk 0:02:38]} 7. Bf1 {[%clk 0:02:41]}  d6 {[%clk 0:02:35]} 8. d4 {[%clk 0:02:40]}  cxd4 {[%clk 0:02:35]} 9. Nxd4 {[%clk 0:02:40]}  Qc7 {[%clk 0:02:31]} 10. a4 {[%clk 0:02:40]}  O-O {[%clk 0:02:22]} 11. Nb3 {[%clk 0:02:35]}  b6 {[%clk 0:02:13]} 12. Be3 {[%clk 0:02:31]}  Bb7 {[%clk 0:02:11]} 13. f4 {[%clk 0:02:31]}  Nb4 {[%clk 0:02:02]} 14. Bf2 {[%clk 0:02:10]}  Rac8 {[%clk 0:01:59]} 15. a5 {[%clk 0:02:10]}  b5 {[%clk 0:01:56]} 16. Nd4 {[%clk 0:01:58]}  Qd7 {[%clk 0:01:40]} 17. e5 {[%clk 0:01:48]}  Nfd5 {[%clk 0:01:29]} 18. Ne4 {[%clk 0:01:23]}  Nxf4 {[%clk 0:01:07]} 19. exd6 {[%clk 0:01:23]}  Bxd6 {[%clk 0:00:42]} 20. Nxb5 {[%clk 0:01:21]}  axb5 {[%clk 0:00:11]} 21. Qxd6 {[%clk 0:01:20]}  Qxd6 {[%clk 0:00:04]} 22. Nxd6 {[%clk 0:01:21]}  Nxc2 {[%clk 0:00:04]} 23. Nxb7 {[%clk 0:01:13]} 1-0


[Site "https://www.chess.com"]

[Event "Titled Tuesday Blitz March 28 Early 2023"]
[White "Jumanov, Elbek"]
[Black "Chigaev, Maksim"]
[WhiteFideId "14202905"]
[BlackFideId "4108116"]
[WhiteElo "2055"]
[BlackElo "2547"]
[Result "0-1"]
[Round "03"]
[TimeControl "180+2"]
[Date "2023.03.28"]
[WhiteClock "0:00:01"]
[BlackClock "0:00:10"]

1. c4 {[%clk 0:03:00]}  Nf6 {[%clk 0:02:56]} 2. Nf3 {[%clk 0:03:00]}  e6 {[%clk 0:02:50]} 3. g3 {[%clk 0:02:59]}  d5 {[%clk 0:02:50]} 4. d4 {[%clk 0:02:59]}  Bb4+ {[%clk 0:02:49]} 5. Bd2 {[%clk 0:02:58]}  a5 {[%clk 0:02:49]} 6. Bg2 {[%clk 0:02:58]}  dxc4 {[%clk 0:02:49]} 7. O-O {[%clk 0:02:55]}  O-O {[%clk 0:02:47]} 8. Qc2 {[%clk 0:02:47]}  c5 {[%clk 0:02:45]} 9. dxc5 {[%clk 0:02:43]}  Bxc5 {[%clk 0:02:46]} 10. Qxc4 {[%clk 0:02:39]}  b6 {[%clk 0:02:46]} 11. Nc3 {[%clk 0:02:30]}  Bb7 {[%clk 0:02:37]} 12. Rfd1 {[%clk 0:02:25]}  Nbd7 {[%clk 0:02:38]} 13. Bf4 {[%clk 0:02:09]}  Qe7 {[%clk 0:02:16]} 14. Na4 {[%clk 0:01:47]}  Rfc8 {[%clk 0:01:56]} 15. Nxc5 {[%clk 0:01:46]}  Nxc5 {[%clk 0:01:57]} 16. Bd6 {[%clk 0:01:10]}  Qe8 {[%clk 0:01:57]} 17. Bxc5 {[%clk 0:01:04]}  Rxc5 {[%clk 0:01:56]} 18. Qb3 {[%clk 0:01:04]}  Rb5 {[%clk 0:01:33]} 19. Qa3 {[%clk 0:01:01]}  Rb4 {[%clk 0:01:34]} 20. Rd6 {[%clk 0:00:51]}  Ne4 {[%clk 0:01:20]} 21. Rd4 {[%clk 0:00:44]}  Qb5 {[%clk 0:01:20]} 22. Rad1 {[%clk 0:00:40]}  h6 {[%clk 0:01:06]} 23. Qe3 {[%clk 0:00:25]}  Rxb2 {[%clk 0:00:40]} 24. Rxe4 {[%clk 0:00:25]}  Bxe4 {[%clk 0:00:41]} 25. Qxe4 {[%clk 0:00:25]}  Rf8 {[%clk 0:00:40]} 26. Nd4 {[%clk 0:00:22]}  Qa4 {[%clk 0:00:40]} 27. Ra1 {[%clk 0:00:11]}  Rd8 {[%clk 0:00:17]} 28. Nc6 {[%clk 0:00:08]}  Qxe4 {[%clk 0:00:12]} 29. Bxe4 {[%clk 0:00:07]}  Rdd2 {[%clk 0:00:13]} 30. Bd3 {[%clk 0:00:04]}  Rxa2 {[%clk 0:00:13]} 31. Rb1 {[%clk 0:00:04]}  Rab2 {[%clk 0:00:12]} 32. Rc1 {[%clk 0:00:04]}  Kf8 {[%clk 0:00:08]} 33. Nd4 {[%clk 0:00:03]}  a4 {[%clk 0:00:07]} 34. Nb5 {[%clk 0:00:02]}  Rxd3 {[%clk 0:00:07]} 35. exd3 {[%clk 0:00:02]}  Rxb5 {[%clk 0:00:08]} 36. Ra1 {[%clk 0:00:02]}  Ra5 {[%clk 0:00:08]} 37. Kf1 {[%clk 0:00:03]}  b5 {[%clk 0:00:09]} 38. Ke2 {[%clk 0:00:04]}  b4 {[%clk 0:00:09]} 39. Kd2 {[%clk 0:00:04]}  Ke7 {[%clk 0:00:10]} 40. Kc2 {[%clk 0:00:04]}  Kd6 {[%clk 0:00:11]} 41. Re1 {[%clk 0:00:02]}  Rc5+ {[%clk 0:00:10]} 42. Kb2 {[%clk 0:00:02]}  Rc3 {[%clk 0:00:10]} 43. d4 {[%clk 0:00:02]}  a3+ {[%clk 0:00:09]} 44. Kb1 {[%clk 0:00:01]}  Rb3+ {[%clk 0:00:10]} 0-1


[Site "https://www.chess.com"]

[Event "Titled Tuesday Blitz March 28 Early 2023"]
[White "Sousa, Andre Ventura"]
[Black "Mendonca, Leon Luke"]
[WhiteFideId "1917617"]
[BlackFideId "35028561"]
[WhiteElo "2348"]
[BlackElo "2464"]
[Result "1/2-1/2"]
[Round "03"]
[TimeControl "180+2"]
[Date "2023.03.28"]
[WhiteClock "0:00:12"]
[BlackClock "0:00:09"]

1. d4 {[%clk 0:03:00]}  Nf6 {[%clk 0:02:57]} 2. Nf3 {[%clk 0:03:00]}  b5 {[%clk 0:02:56]} 3. e3 {[%clk 0:02:57]}  a6 {[%clk 0:02:56]} 4. a4 {[%clk 0:02:57]}  b4 {[%clk 0:02:57]} 5. c4 {[%clk 0:02:57]}  bxc3 {[%clk 0:02:57]} 6. Nxc3 {[%clk 0:02:57]}  e6 {[%clk 0:02:55]} 7. Bd3 {[%clk 0:02:57]}  d5 {[%clk 0:02:56]} 8. O-O {[%clk 0:02:53]}  Nc6 {[%clk 0:02:50]} 9. e4 {[%clk 0:02:48]}  Nb4 {[%clk 0:02:44]} 10. e5 {[%clk 0:02:25]}  Nd7 {[%clk 0:02:43]} 11. Bg5 {[%clk 0:02:23]}  Be7 {[%clk 0:02:41]} 12. Bxe7 {[%clk 0:02:23]}  Qxe7 {[%clk 0:02:42]} 13. a5 {[%clk 0:02:19]}  Rb8 {[%clk 0:02:36]} 14. Bb1 {[%clk 0:02:17]}  O-O {[%clk 0:02:33]} 15. Qd2 {[%clk 0:02:12]}  c5 {[%clk 0:02:29]} 16. Re1 {[%clk 0:02:05]}  f6 {[%clk 0:02:04]} 17. exf6 {[%clk 0:02:02]}  Nxf6 {[%clk 0:02:00]} 18. Na4 {[%clk 0:01:48]}  cxd4 {[%clk 0:01:54]} 19. Qxd4 {[%clk 0:01:49]}  Nc6 {[%clk 0:01:27]} 20. Qh4 {[%clk 0:01:34]}  Rb4 {[%clk 0:01:20]} 21. Qg5 {[%clk 0:01:19]}  Rg4 {[%clk 0:01:15]} 22. Qe3 {[%clk 0:01:08]}  Nxa5 {[%clk 0:00:45]} 23. Nb6 {[%clk 0:00:55]}  Nc4 {[%clk 0:00:38]} 24. Nxc4 {[%clk 0:00:56]}  Rxc4 {[%clk 0:00:38]} 25. Ng5 {[%clk 0:00:47]}  h6 {[%clk 0:00:29]} 26. Nf3 {[%clk 0:00:35]}  Qb4 {[%clk 0:00:29]} 27. Bd3 {[%clk 0:00:34]}  Rc7 {[%clk 0:00:23]} 28. Bxa6 {[%clk 0:00:34]}  Bd7 {[%clk 0:00:19]} 29. Ne5 {[%clk 0:00:29]}  Ne4 {[%clk 0:00:15]} 30. Nxd7 {[%clk 0:00:25]}  Rxd7 {[%clk 0:00:14]} 31. Bd3 {[%clk 0:00:25]}  Nc5 {[%clk 0:00:10]} 32. Bg6 {[%clk 0:00:17]}  Re7 {[%clk 0:00:06]} 33. Rad1 {[%clk 0:00:16]}  Qxb2 {[%clk 0:00:04]} 34. h4 {[%clk 0:00:14]}  Nd7 {[%clk 0:00:03]} 35. h5 {[%clk 0:00:14]}  Qf6 {[%clk 0:00:03]} 36. Re2 {[%clk 0:00:14]}  e5 {[%clk 0:00:02]} 37. Rxd5 {[%clk 0:00:14]}  Kh8 {[%clk 0:00:02]} 38. Red2 {[%clk 0:00:13]}  Nb6 {[%clk 0:00:02]} 39. Rd6 {[%clk 0:00:13]}  Re6 {[%clk 0:00:03]} 40. Qxb6 {[%clk 0:00:13]}  Rxd6 {[%clk 0:00:02]} 41. Rxd6 {[%clk 0:00:14]}  Qf4 {[%clk 0:00:02]} 42. Qe3 {[%clk 0:00:14]}  Qg4 {[%clk 0:00:02]} 43. Rd2 {[%clk 0:00:13]}  Qe6 {[%clk 0:00:01]} 44. Re2 {[%clk 0:00:13]}  Qd6 {[%clk 0:00:01]} 45. Qxe5 {[%clk 0:00:13]}  Qd1+ {[%clk 0:00:02]} 46. Re1 {[%clk 0:00:13]}  Qd2 {[%clk 0:00:02]} 47. Qe7 {[%clk 0:00:14]}  Qxf2+ {[%clk 0:00:02]} 48. Kh2 {[%clk 0:00:14]}  Qf4+ {[%clk 0:00:02]} 49. Kh1 {[%clk 0:00:14]}  Qf2 {[%clk 0:00:02]} 50. Qxf8+ {[%clk 0:00:13]}  Qxf8 {[%clk 0:00:03]} 51. Re8 {[%clk 0:00:14]}  Kg8 {[%clk 0:00:03]} 52. Rxf8+ {[%clk 0:00:15]}  Kxf8 {[%clk 0:00:04]} 53. Kh2 {[%clk 0:00:15]}  Ke7 {[%clk 0:00:05]} 54. Kg3 {[%clk 0:00:16]}  Kf6 {[%clk 0:00:06]} 55. Kf3 {[%clk 0:00:17]}  Kg5 {[%clk 0:00:07]} 56. g4 {[%clk 0:00:17]}  Kf6 {[%clk 0:00:08]} 57. Kg3 {[%clk 0:00:18]}  Ke5 {[%clk 0:00:08]} 58. g5 {[%clk 0:00:18]}  hxg5 {[%clk 0:00:09]} 59. Kg4 {[%clk 0:00:19]}  Kf6 {[%clk 0:00:09]} 60. Be4 {[%clk 0:00:19]}  Kf7 {[%clk 0:00:09]} 61. Kxg5 {[%clk 0:00:20]}  Kg8 {[%clk 0:00:10]} 62. Kg6 {[%clk 0:00:20]}  Kh8 {[%clk 0:00:11]} 63. Kf7 {[%clk 0:00:19]}  g5 {[%clk 0:00:09]} 64. hxg6 {[%clk 0:00:12]} 1/2-1/2


[Site "https://www.chess.com"]

[Event "Titled Tuesday Blitz March 28 Early 2023"]
[White "Nagy, Gabor"]
[Black "Tanmay Jain"]
[WhiteFideId "737119"]
[BlackFideId "45015481"]
[WhiteElo "2510"]
[BlackElo "2032"]
[Result "1-0"]
[Round "03"]
[TimeControl "180+2"]
[Date "2023.03.28"]
[WhiteClock "0:01:23"]
[BlackClock "0:00:02"]

1. d4 {[%clk 0:03:00]}  Nf6 {[%clk 0:02:58]} 2. Nc3 {[%clk 0:03:01]}  d5 {[%clk 0:02:58]} 3. Bf4 {[%clk 0:03:01]}  e6 {[%clk 0:02:58]} 4. a3 {[%clk 0:03:00]}  Bd6 {[%clk 0:02:57]} 5. e3 {[%clk 0:02:57]}  O-O {[%clk 0:02:56]} 6. Nf3 {[%clk 0:02:55]}  Qe7 {[%clk 0:02:45]} 7. Bd3 {[%clk 0:02:52]}  a6 {[%clk 0:02:42]} 8. h4 {[%clk 0:02:51]}  c5 {[%clk 0:02:37]} 9. dxc5 {[%clk 0:02:46]}  Bxc5 {[%clk 0:02:35]} 10. e4 {[%clk 0:02:39]}  e5 {[%clk 0:01:46]} 11. Bg5 {[%clk 0:02:21]}  d4 {[%clk 0:01:29]} 12. Nd5 {[%clk 0:02:20]}  Qd6 {[%clk 0:01:30]} 13. Nxf6+ {[%clk 0:02:15]}  gxf6 {[%clk 0:01:26]} 14. Bh6 {[%clk 0:02:16]}  Re8 {[%clk 0:01:15]} 15. h5 {[%clk 0:02:13]}  f5 {[%clk 0:01:11]} 16. Nh4 {[%clk 0:02:12]}  Qxh6 {[%clk 0:01:10]} 17. Qf3 {[%clk 0:02:05]}  Qf4 {[%clk 0:01:03]} 18. Qe2 {[%clk 0:02:02]}  Nc6 {[%clk 0:00:51]} 19. g3 {[%clk 0:02:01]}  Qg4 {[%clk 0:00:49]} 20. f3 {[%clk 0:01:50]}  Qxg3+ {[%clk 0:00:44]} 21. Kf1 {[%clk 0:01:50]}  Kh8 {[%clk 0:00:42]} 22. exf5 {[%clk 0:01:46]}  e4 {[%clk 0:00:38]} 23. Bxe4 {[%clk 0:01:44]}  Ne5 {[%clk 0:00:37]} 24. Rd1 {[%clk 0:01:37]}  Bd7 {[%clk 0:00:37]} 25. b4 {[%clk 0:01:35]}  Bb5 {[%clk 0:00:36]} 26. Rd3 {[%clk 0:01:29]}  Nxd3 {[%clk 0:00:34]} 27. cxd3 {[%clk 0:01:30]}  Bd6 {[%clk 0:00:32]} 28. Ng6+ {[%clk 0:01:29]}  Kg8 {[%clk 0:00:27]} 29. Rg1 {[%clk 0:01:29]}  Qh3+ {[%clk 0:00:26]} 30. Ke1 {[%clk 0:01:28]}  Bg3+ {[%clk 0:00:19]} 31. Kd1 {[%clk 0:01:27]}  hxg6 {[%clk 0:00:20]} 32. hxg6 {[%clk 0:01:26]}  f6 {[%clk 0:00:20]} 33. Qa2+ {[%clk 0:01:22]}  Kh8 {[%clk 0:00:16]} 34. Qf7 {[%clk 0:01:23]}  Ba4+ {[%clk 0:00:16]} 35. Kc1 {[%clk 0:01:23]}  Bf4+ {[%clk 0:00:13]} 36. Kb1 {[%clk 0:01:23]}  Bc2+ {[%clk 0:00:02]} 37. Ka1 {[%clk 0:01:23]} 1-0


[Site "https://www.chess.com"]

[Event "Titled Tuesday Blitz March 28 Early 2023"]
[White "Karolczuk, Iwo"]
[Black "Koc, Przemyslaw"]
[WhiteFideId "21816972"]
[BlackFideId "1109081"]
[WhiteElo "2348"]
[BlackElo "2161"]
[Result "1-0"]
[Round "03"]
[TimeControl "180+2"]
[Date "2023.03.28"]
[WhiteClock "0:01:25"]
[BlackClock "0:01:38"]

1. e4 {[%clk 0:03:00]}  e5 {[%clk 0:03:00]} 2. Nf3 {[%clk 0:02:59]}  Nf6 {[%clk 0:03:00]} 3. d4 {[%clk 0:02:55]}  Nxe4 {[%clk 0:02:59]} 4. Bd3 {[%clk 0:02:55]}  d5 {[%clk 0:02:59]} 5. Nxe5 {[%clk 0:02:55]}  Nd7 {[%clk 0:02:58]} 6. Nxd7 {[%clk 0:02:51]}  Bxd7 {[%clk 0:02:58]} 7. Nc3 {[%clk 0:02:51]}  Nxc3 {[%clk 0:02:57]} 8. bxc3 {[%clk 0:02:52]}  Be7 {[%clk 0:02:57]} 9. Qh5 {[%clk 0:02:48]}  g6 {[%clk 0:02:53]} 10. Qxd5 {[%clk 0:02:43]}  Bc6 {[%clk 0:02:52]} 11. Qxd8+ {[%clk 0:02:42]}  Rxd8 {[%clk 0:02:53]} 12. O-O {[%clk 0:02:36]}  O-O {[%clk 0:02:53]} 13. Bf4 {[%clk 0:02:36]}  Bd6 {[%clk 0:02:51]} 14. Bxd6 {[%clk 0:02:35]}  cxd6 {[%clk 0:02:52]} 15. c4 {[%clk 0:02:17]}  Rfe8 {[%clk 0:02:50]} 16. Rfe1 {[%clk 0:02:17]}  Kf8 {[%clk 0:02:50]} 17. f3 {[%clk 0:02:16]}  b6 {[%clk 0:02:48]} 18. Kf2 {[%clk 0:02:15]}  Bb7 {[%clk 0:02:40]} 19. a4 {[%clk 0:02:05]}  Rxe1 {[%clk 0:02:37]} 20. Kxe1 {[%clk 0:02:06]}  Rd7 {[%clk 0:02:08]} 21. a5 {[%clk 0:02:05]}  bxa5 {[%clk 0:02:08]} 22. Rxa5 {[%clk 0:02:05]}  Rc7 {[%clk 0:02:08]} 23. Kd2 {[%clk 0:02:04]}  Bc8 {[%clk 0:02:08]} 24. Kc3 {[%clk 0:01:51]}  Ke7 {[%clk 0:02:08]} 25. d5 {[%clk 0:01:44]}  h5 {[%clk 0:02:02]} 26. Kd4 {[%clk 0:01:44]}  h4 {[%clk 0:01:56]} 27. c5 {[%clk 0:01:40]}  dxc5+ {[%clk 0:01:55]} 28. Rxc5 {[%clk 0:01:39]}  Rxc5 {[%clk 0:01:56]} 29. Kxc5 {[%clk 0:01:39]}  Kd7 {[%clk 0:01:46]} 30. c4 {[%clk 0:01:28]}  g5 {[%clk 0:01:38]} 31. Bf5+ {[%clk 0:01:25]} 1-0


[Site "https://www.chess.com"]

[Event "Titled Tuesday Blitz March 28 Early 2023"]
[White "Schmakel, Sam"]
[Black "Forgacs, Attila Jr."]
[WhiteFideId "2039311"]
[BlackFideId "773654"]
[WhiteElo "2356"]
[BlackElo "2168"]
[Result "1-0"]
[Round "03"]
[TimeControl "180+2"]
[Date "2023.03.28"]
[WhiteClock "0:01:52"]
[BlackClock "0:01:31"]

1. Nf3 {[%clk 0:03:00]}  Nf6 {[%clk 0:02:59]} 2. g3 {[%clk 0:03:00]}  g6 {[%clk 0:02:59]} 3. Bg2 {[%clk 0:03:00]}  Bg7 {[%clk 0:03:00]} 4. O-O {[%clk 0:03:00]}  O-O {[%clk 0:03:00]} 5. d4 {[%clk 0:03:01]}  d6 {[%clk 0:03:00]} 6. Nc3 {[%clk 0:03:00]}  c6 {[%clk 0:03:00]} 7. a4 {[%clk 0:03:00]}  Na6 {[%clk 0:03:00]} 8. a5 {[%clk 0:02:59]}  Nc7 {[%clk 0:03:00]} 9. e4 {[%clk 0:02:56]}  d5 {[%clk 0:02:42]} 10. e5 {[%clk 0:02:46]}  Nd7 {[%clk 0:02:42]} 11. Be3 {[%clk 0:02:33]}  c5 {[%clk 0:02:26]} 12. dxc5 {[%clk 0:02:29]}  Nxe5 {[%clk 0:02:26]} 13. Nxe5 {[%clk 0:02:28]}  Bxe5 {[%clk 0:02:27]} 14. Nxd5 {[%clk 0:02:28]}  Nxd5 {[%clk 0:02:27]} 15. Qxd5 {[%clk 0:02:26]}  Qxd5 {[%clk 0:02:07]} 16. Bxd5 {[%clk 0:02:27]}  Bxb2 {[%clk 0:02:08]} 17. Rab1 {[%clk 0:02:25]}  Bc3 {[%clk 0:02:09]} 18. a6 {[%clk 0:02:24]}  Rb8 {[%clk 0:01:48]} 19. axb7 {[%clk 0:02:18]}  Bh3 {[%clk 0:01:45]} 20. c6 {[%clk 0:02:12]}  Bxf1 {[%clk 0:01:37]} 21. Kxf1 {[%clk 0:02:07]}  Be5 {[%clk 0:01:35]} 22. Bf4 {[%clk 0:02:02]}  Bxf4 {[%clk 0:01:34]} 23. gxf4 {[%clk 0:02:03]}  e6 {[%clk 0:01:33]} 24. Bf3 {[%clk 0:01:58]}  a5 {[%clk 0:01:33]} 25. c7 {[%clk 0:01:57]}  a4 {[%clk 0:01:34]} 26. c4 {[%clk 0:01:52]}  a3 {[%clk 0:01:32]} 27. cxb8=Q {[%clk 0:01:50]}  Rxb8 {[%clk 0:01:32]} 28. c5 {[%clk 0:01:51]}  Kf8 {[%clk 0:01:30]} 29. c6 {[%clk 0:01:51]}  Ke7 {[%clk 0:01:31]} 30. c7 {[%clk 0:01:52]} 1-0


[Site "https://www.chess.com"]

[Event "Titled Tuesday Blitz March 28 Early 2023"]
[White "Bashirli, Nail"]
[Black "Manukian, Artak"]
[WhiteFideId "13406809"]
[BlackFideId "13301373"]
[WhiteElo "2338"]
[BlackElo "2130"]
[Result "1-0"]
[Round "03"]
[TimeControl "180+2"]
[Date "2023.03.28"]
[WhiteClock "0:00:13"]
[BlackClock "0:00:06"]

1. e4 {[%clk 0:02:57]}  c6 {[%clk 0:02:58]} 2. d4 {[%clk 0:02:48]}  d5 {[%clk 0:02:59]} 3. Nc3 {[%clk 0:02:48]}  dxe4 {[%clk 0:02:58]} 4. Nxe4 {[%clk 0:02:42]}  Nf6 {[%clk 0:02:57]} 5. Nxf6+ {[%clk 0:02:31]}  exf6 {[%clk 0:02:58]} 6. c3 {[%clk 0:02:30]}  Bd6 {[%clk 0:02:52]} 7. Bd3 {[%clk 0:02:20]}  Na6 {[%clk 0:02:44]} 8. Ne2 {[%clk 0:02:19]}  Nc7 {[%clk 0:02:44]} 9. O-O {[%clk 0:02:17]}  Nd5 {[%clk 0:02:44]} 10. Qc2 {[%clk 0:02:09]}  b5 {[%clk 0:02:30]} 11. a4 {[%clk 0:01:57]}  b4 {[%clk 0:02:27]} 12. c4 {[%clk 0:01:55]}  Ne7 {[%clk 0:02:25]} 13. Re1 {[%clk 0:01:50]}  Kf8 {[%clk 0:02:13]} 14. Bf4 {[%clk 0:01:47]}  Ng6 {[%clk 0:02:09]} 15. Bxd6+ {[%clk 0:01:44]}  Qxd6 {[%clk 0:02:10]} 16. Ng3 {[%clk 0:01:42]}  Qxd4 {[%clk 0:02:03]} 17. Rad1 {[%clk 0:01:38]}  Bg4 {[%clk 0:01:58]} 18. Be2 {[%clk 0:01:35]}  Qf4 {[%clk 0:01:53]} 19. Bxg4 {[%clk 0:01:32]}  Qxg4 {[%clk 0:01:53]} 20. Qd2 {[%clk 0:01:31]}  Qc8 {[%clk 0:01:28]} 21. Nf5 {[%clk 0:01:26]}  h5 {[%clk 0:01:22]} 22. Qxb4+ {[%clk 0:01:15]}  c5 {[%clk 0:01:22]} 23. Qa5 {[%clk 0:01:06]}  Ne5 {[%clk 0:01:16]} 24. Nd6 {[%clk 0:01:00]}  Qc6 {[%clk 0:01:11]} 25. f4 {[%clk 0:01:00]}  Ng4 {[%clk 0:01:06]} 26. Nf5 {[%clk 0:00:42]}  Qb6 {[%clk 0:00:55]} 27. Qxb6 {[%clk 0:00:29]}  axb6 {[%clk 0:00:53]} 28. Rd7 {[%clk 0:00:30]}  Kg8 {[%clk 0:00:47]} 29. Ree7 {[%clk 0:00:26]}  Rxa4 {[%clk 0:00:39]} 30. Kf1 {[%clk 0:00:24]}  Rxc4 {[%clk 0:00:26]} 31. g3 {[%clk 0:00:17]}  Nh6 {[%clk 0:00:21]} 32. Nxh6+ {[%clk 0:00:11]}  Rxh6 {[%clk 0:00:22]} 33. Rxf7 {[%clk 0:00:10]}  Rg6 {[%clk 0:00:18]} 34. Rfe7 {[%clk 0:00:11]}  h4 {[%clk 0:00:15]} 35. Re8+ {[%clk 0:00:10]}  Kh7 {[%clk 0:00:12]} 36. Kg2 {[%clk 0:00:10]}  hxg3 {[%clk 0:00:12]} 37. hxg3 {[%clk 0:00:11]}  Rc2+ {[%clk 0:00:12]} 38. Kh3 {[%clk 0:00:11]}  Rh6+ {[%clk 0:00:10]} 39. Kg4 {[%clk 0:00:11]}  Rg6+ {[%clk 0:00:09]} 40. Kf5 {[%clk 0:00:11]}  Rh2 {[%clk 0:00:07]} 41. Rdd8 {[%clk 0:00:12]}  Rh5+ {[%clk 0:00:06]} 42. Ke6 {[%clk 0:00:12]}  Rxg3 {[%clk 0:00:06]} 43. Kf7 {[%clk 0:00:13]} 1-0


[Site "https://www.chess.com"]

[Event "Titled Tuesday Blitz March 28 Early 2023"]
[White "Iskusnyh, Sergei"]
[Black "Novikov, Evgenij"]
[WhiteFideId "4120027"]
[BlackFideId "4125380"]
[WhiteElo "2492"]
[BlackElo "2242"]
[Result "0-1"]
[Round "03"]
[TimeControl "180+2"]
[Date "2023.03.28"]
[WhiteClock "0:00:06"]
[BlackClock "0:00:17"]

1. d4 {[%clk 0:03:00]}  d5 {[%clk 0:02:59]} 2. c4 {[%clk 0:03:00]}  e6 {[%clk 0:02:59]} 3. Nf3 {[%clk 0:02:59]}  Nf6 {[%clk 0:02:59]} 4. g3 {[%clk 0:02:59]}  Be7 {[%clk 0:03:00]} 5. Bg2 {[%clk 0:02:59]}  O-O {[%clk 0:03:00]} 6. O-O {[%clk 0:02:59]}  c6 {[%clk 0:03:00]} 7. Qc2 {[%clk 0:02:58]}  Nbd7 {[%clk 0:02:59]} 8. Rd1 {[%clk 0:02:57]}  b6 {[%clk 0:02:58]} 9. b3 {[%clk 0:02:56]}  Bb7 {[%clk 0:02:55]} 10. Nc3 {[%clk 0:02:56]}  Rc8 {[%clk 0:02:51]} 11. e4 {[%clk 0:02:56]}  Bb4 {[%clk 0:02:41]} 12. e5 {[%clk 0:02:46]}  Bxc3 {[%clk 0:02:39]} 13. Qxc3 {[%clk 0:02:46]}  Ne4 {[%clk 0:02:39]} 14. Qe1 {[%clk 0:02:37]}  f5 {[%clk 0:02:16]} 15. exf6 {[%clk 0:02:35]}  Qxf6 {[%clk 0:02:15]} 16. Be3 {[%clk 0:02:23]}  c5 {[%clk 0:02:08]} 17. cxd5 {[%clk 0:02:14]}  exd5 {[%clk 0:02:06]} 18. Nd2 {[%clk 0:02:04]}  Nc3 {[%clk 0:01:47]} 19. dxc5 {[%clk 0:01:06]}  Nxd1 {[%clk 0:01:46]} 20. Qxd1 {[%clk 0:01:03]}  Nxc5 {[%clk 0:01:38]} 21. Nf3 {[%clk 0:01:01]}  Ne4 {[%clk 0:01:34]} 22. Bd4 {[%clk 0:00:56]}  Qc6 {[%clk 0:01:21]} 23. Ne1 {[%clk 0:00:37]}  Nxf2 {[%clk 0:01:02]} 24. Bxf2 {[%clk 0:00:32]}  Rxf2 {[%clk 0:01:01]} 25. Kxf2 {[%clk 0:00:19]}  Qc5+ {[%clk 0:01:01]} 26. Ke2 {[%clk 0:00:14]}  Re8+ {[%clk 0:00:30]} 27. Kd2 {[%clk 0:00:13]}  Qf2+ {[%clk 0:00:19]} 28. Kc3 {[%clk 0:00:12]}  Rc8+ {[%clk 0:00:18]} 29. Kb4 {[%clk 0:00:06]}  Qc5+ {[%clk 0:00:17]} 0-1


[Site "https://www.chess.com"]

[Event "Titled Tuesday Blitz March 28 Early 2023"]
[White "Wahedi, Ahmad Siar"]
[Black "Zhao, Jun"]
[WhiteFideId "4651260"]
[BlackFideId "8602522"]
[WhiteElo "2468"]
[BlackElo "2547"]
[Result "0-1"]
[Round "03"]
[TimeControl "180+2"]
[Date "2023.03.28"]
[WhiteClock "0:00:53"]
[BlackClock "0:00:19"]

1. e4 {[%clk 0:03:00]}  c5 {[%clk 0:02:56]} 2. Nf3 {[%clk 0:03:01]}  d6 {[%clk 0:02:56]} 3. d4 {[%clk 0:03:00]}  cxd4 {[%clk 0:02:57]} 4. Nxd4 {[%clk 0:03:01]}  Nf6 {[%clk 0:02:58]} 5. Nc3 {[%clk 0:03:01]}  a6 {[%clk 0:02:58]} 6. Be3 {[%clk 0:03:02]}  e5 {[%clk 0:02:58]} 7. Nf3 {[%clk 0:03:01]}  Be7 {[%clk 0:02:57]} 8. h3 {[%clk 0:03:02]}  Qc7 {[%clk 0:02:56]} 9. g4 {[%clk 0:03:00]}  h6 {[%clk 0:02:54]} 10. Qd2 {[%clk 0:02:56]}  Be6 {[%clk 0:02:54]} 11. g5 {[%clk 0:02:50]}  hxg5 {[%clk 0:02:51]} 12. Nxg5 {[%clk 0:02:51]}  Nbd7 {[%clk 0:02:42]} 13. Nxe6 {[%clk 0:02:47]}  fxe6 {[%clk 0:02:42]} 14. O-O-O {[%clk 0:02:45]}  Ng4 {[%clk 0:02:32]} 15. Kb1 {[%clk 0:02:26]}  Nxe3 {[%clk 0:02:25]} 16. Qxe3 {[%clk 0:02:25]}  O-O-O {[%clk 0:02:10]} 17. Be2 {[%clk 0:02:25]}  Nf6 {[%clk 0:02:09]} 18. f4 {[%clk 0:02:21]}  exf4 {[%clk 0:02:00]} 19. Qxf4 {[%clk 0:02:21]}  Kb8 {[%clk 0:01:45]} 20. Qg5 {[%clk 0:02:12]}  Nxe4 {[%clk 0:01:40]} 21. Qxg7 {[%clk 0:02:06]}  Nf2 {[%clk 0:01:39]} 22. Rhe1 {[%clk 0:01:58]}  Nxd1 {[%clk 0:01:38]} 23. Bxd1 {[%clk 0:01:58]}  Rxh3 {[%clk 0:01:00]} 24. Rxe6 {[%clk 0:01:58]}  Bf8 {[%clk 0:00:58]} 25. Qg2 {[%clk 0:01:45]}  Rxc3 {[%clk 0:00:56]} 26. bxc3 {[%clk 0:01:44]}  Qxc3 {[%clk 0:00:57]} 27. Qf3 {[%clk 0:01:33]}  Qc7 {[%clk 0:00:53]} 28. Qb3 {[%clk 0:01:18]}  Bg7 {[%clk 0:00:51]} 29. Bf3 {[%clk 0:01:17]}  Be5 {[%clk 0:00:46]} 30. c4 {[%clk 0:01:10]}  Rf8 {[%clk 0:00:35]} 31. Bd5 {[%clk 0:01:05]}  Rf1+ {[%clk 0:00:30]} 32. Kc2 {[%clk 0:01:03]}  Qh7+ {[%clk 0:00:27]} 33. Kd2 {[%clk 0:01:03]}  Qh2+ {[%clk 0:00:21]} 34. Kd3 {[%clk 0:01:00]}  Qg3+ {[%clk 0:00:20]} 35. Kd2 {[%clk 0:00:54]}  Qf2+ {[%clk 0:00:19]} 36. Kd3 {[%clk 0:00:53]}  Qd4+ {[%clk 0:00:19]} 37. Ke2 {[%clk 0:00:53]}  Rf2+ {[%clk 0:00:19]} 38. Ke1 {[%clk 0:00:53]}  Qd2# {[%clk 0:00:19]} 0-1


[Site "https://www.chess.com"]